bitfinex-derivatives/quotes_ETHF0:USTF0_20250430
["timestamp","ask_amount","ask_price","bid_price","bid_amount"]
[1746016708053,8.09554847,1784.3,1784.2,1.12407]
[1746016708257,0.45800362,1784.3,1784.2,1.12407]
[1746016708453,7.63754485,1784.3,1784.2,1.12407]
[1746016708651,11.96594485,1784.3,1784.2,1.12407]
[1746016708853,7.63754485,1784.3,1784.2,1.12407]
[1746016709058,11.96594485,1784.3,1784.2,0.0034]
[1746016709663,10.84534485,1784.3,1784.2,1.12407]
[1746016709866,11.96594485,1784.3,1784.2,0.0034]
[1746016710664,3.2078,1784.5,1784.2,1.12407]
[1746016710868,3.2078,1784.5,1784.4,1.12054]
[1746016711067,10.84534485,1784.5,1784.4,1.12054]
[1746016711371,11.96582485,1784.5,1784.4,1.12054]
[1746016711666,10.84534485,1784.5,1784.3,1.12058]
[1746016711866,4.32832,1784.5,1784.3,1.12058]
[1746016712066,7.63754485,1784.4,1784.3,1.12058]
[1746016712267,7.63754485,1784.4,1784.2,0.0034]
[1746016712472,11.96594485,1784.3,1784.2,0.0034]
[1746016712668,11.96594485,1784.3,1784.2,1.12407]
[1746016712866,11.96594485,1784.3,1784.2,0.0034]
[1746016713055,16.96594485,1784.3,1784.2,0.0034]
[1746016713260,16.96594485,1784.3,1783.9,1.12997747]
[1746016713261,1.12079,1784.0,1783.9,1.13000747]
[1746016713567,11.96613485,1784.0,1783.9,0.00918747]
[1746016713868,12.42396224,1784.0,1783.9,0.00918747]
[1746016714070,12.42056224,1784.0,1783.9,0.00918747]
[1746016714562,11.29977224,1784.0,1783.9,0.00918747]
[1746016714761,0.45442739,1784.0,1783.9,1.13003747]
[1746016714957,8.75833485,1784.0,1783.9,0.00918747]
[1746016715362,11.96613485,1784.0,1783.9,0.00918747]
[1746016716369,16.96273485,1784.0,1783.9,0.00918747]
[1746016716868,11.96273485,1784.0,1783.9,0.00918747]
[1746016717066,1.12101,1783.7,1783.6,1.121]
[1746016717265,4.32877,1783.8,1783.7,1.12098]
[1746016717664,4.32877,1783.8,1783.1,46.40658]
[1746016717665,13.64424485,1783.8,1782.7,0.09758957]
[1746016717967,7.63414485,1783.4,1783.3,5.10743]
[1746016718369,4.32891,1783.5,1783.4,1.12117]
[1746016718569,3.2078,1783.5,1783.4,1.12117]
[1746016718772,11.95965485,1783.5,1783.4,1.12117]
[1746016719471,10.83514485,1783.5,1783.4,1.12117]
[1746016719870,3.2078,1784.0,1783.6,2.80249]
[1746016720071,4.32864,1784.0,1783.8,1.12092]
[1746016720271,1.12085,1783.9,1783.8,1.12092]
[1746016720474,7.63414485,1783.9,1783.8,1.12092]
[1746016720665,3.2078,1784.0,1783.9,1.12085]
[1746016720970,3.2044,1784.0,1783.9,1.12085]
[1746016721172,8.1908,1784.4,1784.2,1.12062]
[1746016721376,7.63414485,1784.2,1784.1,1.12073]
[1746016721762,3.2078,1784.7,1784.6,0.0034]
[1746016721968,10.93181984,1784.9,1784.7,1.12035]
[1746016722272,7.11151984,1784.9,1784.7,4.84145]
[1746016722473,7.11151984,1784.9,1784.7,9.84145]
[1746016722674,7.11151984,1784.9,1784.7,50.64145]
[1746016723273,7.11151984,1784.9,1784.7,45.64145]
[1746016723466,9.44977298,1784.8,1784.7,4.84145]
[1746016724270,5.35657298,1784.8,1784.7,4.84145]
[1746016724477,5.35657298,1784.8,1784.7,9.84145]
[1746016724876,5.35657298,1784.8,1784.7,50.64145]
[1746016725076,5.35657298,1784.8,1784.7,45.64145]
[1746016725380,14.11100783,1784.8,1784.7,45.64145]
[1746016725674,8.75443485,1784.8,1784.7,1.12035]
[1746016725875,1.12035,1784.7,1784.6,0.0034]
[1746016726072,12.84769485,1784.7,1784.6,0.0034]
[1746016726281,21.05549485,1784.7,1784.6,0.0034]
[1746016726469,2.80104,1784.6,1783.8,6.01009]
[1746016726671,3.2078,1784.4,1784.3,1.1206]
[1746016726865,7.63074485,1784.3,1784.0,8.34929]
[1746016727176,7.63074485,1784.3,1784.2,1.12067]
[1746016727673,7.63074485,1784.3,1784.1,44.0078]
[1746016727877,2.80121,1784.5,1784.1,4.32849]
[1746016728177,7.63074485,1784.2,1784.1,1.12069]
[1746016728379,7.63074485,1784.2,1784.1,1.12073]
[1746016728874,7.62734485,1784.2,1784.1,1.12073]
[1746016729182,1.12058,1784.4,1784.3,1.12055]
[1746016729183,1.12054,1784.4,1784.3,1.12055]
[1746016729371,1.12052,1784.5,1784.4,1.12052]
[1746016729575,2.80096,1784.7,1784.1,2.80182]
[1746016729576,1.12055,1784.4,1784.3,1.12056]
[1746016729778,1.12055,1784.4,1784.0,1.12076]
[1746016729779,1.12075,1784.1,1784.0,1.12076]
[1746016730076,8.74809485,1784.1,1784.0,1.12076]
[1746016730465,8.74811485,1784.1,1784.0,1.12079]
[1746016730671,7.62734485,1784.1,1784.0,1.12079]
[1746016730980,3.2078,1784.2,1784.1,1.12073]
[1746016731476,3.2044,1784.2,1784.1,1.12073]
[1746016731979,5.03634,1784.4,1784.3,1.1206]
[1746016732175,12.66368485,1784.4,1784.3,1.1206]
[1746016732375,15.87148485,1784.4,1784.3,1.1206]
[1746016732765,15.87150485,1784.4,1784.3,1.1206]
[1746016732966,1.12049,1784.5,1784.4,1.12054]
[1746016733172,8.74789485,1784.4,1784.2,4.1599]
[1746016733371,1.12067,1784.2,1784.1,1.12072]
[1746016733576,7.62734485,1784.2,1784.1,1.12072]
[1746016733883,5.02108,1784.4,1784.3,1.1206]
[1746016734078,8.74795485,1784.3,1784.2,1.12062]
[1746016734379,4.32824,1784.6,1784.3,1.1206]
[1746016734575,7.1729,1784.8,1784.6,1.12037]
[1746016734773,8.29324,1784.8,1784.7,4.1599]
[1746016734973,4.32814,1784.8,1784.7,4.1599]
[1746016735171,12.41527843,1784.8,1784.7,4.1599]
[1746016735372,8.08713843,1784.8,1784.7,5.28025]
[1746016735572,9.20742843,1784.8,1784.7,4.1599]
[1746016735773,1.12035,1784.7,1784.6,0.0034]
[1746016735974,11.60164485,1784.7,1784.6,1.12381]
[1746016736177,1.58010358,1784.8,1784.7,1.12035]
[1746016736178,0.45979358,1784.8,1784.7,1.12035]
[1746016736378,7.62734485,1784.7,1784.6,1.12376]
[1746016736574,11.60164485,1784.7,1784.6,1.12376]
[1746016736779,1.12035,1784.7,1784.6,1.12378]
[1746016736982,1.12035,1784.8,1784.7,1.12033]
[1746016737181,5.09465,1784.8,1784.7,1.12033]
[1746016737480,1.12035,1784.7,1784.6,1.12377]
[1746016737682,12.72199485,1784.7,1784.6,0.0034]
[1746016738174,1.12059,1784.4,1784.2,4.883]
[1746016738382,10.42887485,1784.3,1783.7,3.2078]
[1746016738580,0.46027191,1784.2,1783.9,4.2308]
[1746016738882,0.46027191,1784.2,1784.1,1.12073]
[1746016739081,1.58094191,1784.2,1784.1,1.12073]
[1746016739281,1.12075,1784.1,1784.0,1.12074]
[1746016739683,1.12079,1784.0,1783.9,10.23465]
[1746016739877,7.62734485,1784.0,1783.7,4.883]
[1746016740083,7.62734485,1783.7,1783.5,4.883]
[1746016740284,7.62734485,1783.7,1783.6,1.12104]
[1746016740785,8.74832485,1783.7,1783.6,1.12104]
[1746016740980,7.62394485,1783.7,1783.6,1.12104]
[1746016741179,8.74492485,1783.7,1783.5,45.0308]
[1746016741373,1.12092,1783.8,1783.7,1.12095]
[1746016741685,7.2603,1783.9,1783.8,1.12092]
[1746016741686,3.2078,1783.9,1783.8,1.12092]
[1746016741885,3.2078,1784.2,1784.1,1.12073]
[1746016742082,7.62394485,1784.1,1783.9,1.12082]
[1746016742274,10.88263594,1784.0,1783.4,1.12112]
[1746016742474,7.62054485,1783.4,1783.3,3.2078]
[1746016742674,1.12115,1783.5,1783.2,12.7513]
[1746016742878,6.01015,1783.8,1783.2,12.7513]
[1746016742879,7.62054485,1783.4,1783.3,1.12123]
[1746016743183,7.62054485,1783.4,1783.3,4.32903]
[1746016743387,3.8786,1783.7,1783.6,1.12104]
[1746016743684,7.62054485,1783.9,1783.8,1.12092]
[1746016743981,3.2078,1784.3,1783.9,2.80214]
[1746016744185,3.2078,1784.3,1784.0,8.7519]
[1746016744389,7.62054485,1784.1,1784.0,9.87265]
[1746016744587,7.61714485,1784.1,1784.0,9.87265]
[1746016745787,7.61374485,1784.1,1784.0,9.87265]
[1746016746286,4.32838,1784.4,1784.3,1.1206]
[1746016746588,0.46027791,1784.4,1784.3,1.1206]
[1746016746880,4.1545,1784.7,1784.3,11.00931]
[1746016747080,4.32813,1784.8,1784.3,11.00931]
[1746016747081,5.20506,1784.9,1784.8,1.12029]
[1746016747283,9.35956,1784.9,1784.8,1.12029]
[1746016747485,1.1203,1784.8,1784.7,1.12033]
[1746016747682,7.61374485,1784.7,1784.4,8.8853]
[1746016747880,7.61374485,1784.5,1784.3,6.00456]
[1746016748079,11.82284485,1784.4,1784.3,1.12056]
[1746016748288,1.12043,1784.6,1784.5,1.12048]
[1746016748485,8.73422485,1784.5,1784.4,5.33459]
[1746016748683,1.1206,1784.3,1784.2,4.883]
[1746016748885,5.32964,1784.4,1784.3,0.0239]
[1746016749275,12.94338485,1784.4,1784.3,0.0239]
[1746016749490,1.12067,1784.2,1784.1,0.0034]
[1746016749684,1.12121,1783.4,1783.0,6.01134]
[1746016749889,1.12122,1783.4,1783.3,1.12121]
[1746016750188,8.73501485,1783.3,1783.2,1.12129]
[1746016750383,12.94070485,1783.3,1783.2,1.12129]
[1746016750591,12.28000134,1783.3,1783.2,1.12129]
[1746016750891,0.46055649,1783.3,1783.2,1.12129]
[1746016751083,0.46055649,1783.3,1783.2,5.11899]
[1746016751283,4.1462,1783.6,1783.5,1.12111]
[1746016751484,1.12094,1783.8,1783.7,1.12096]
[1746016751689,7.60694485,1783.7,1783.6,1.12099]
[1746016751983,7.60694485,1783.7,1783.6,5.11869]
[1746016752190,12.21325519,1783.7,1783.6,5.11869]
[1746016752489,13.33083519,1783.7,1783.6,5.11869]
[1746016752689,15.41765519,1783.7,1783.4,4.757]
[1746016752887,8.72466485,1783.5,1783.4,1.12115]
[1746016753295,1.12108,1783.6,1783.5,1.12111]
[1746016753491,12.79132485,1783.6,1783.4,5.39542]
[1746016753686,8.72465485,1783.5,1783.4,4.2743]
[1746016753885,4.0667,1783.5,1783.4,5.39547]
[1746016754085,3.8866,1783.5,1783.4,5.39547]
[1746016754280,5.00771,1783.5,1783.4,5.39547]
[1746016754481,5.00771,1783.5,1783.4,4.2743]
[1746016754693,3.8866,1783.5,1783.4,5.39547]
[1746016754894,11.48674485,1783.5,1783.4,5.39547]
[1746016755085,11.94728968,1783.5,1783.4,5.39547]
[1746016755397,0.46054483,1783.5,1783.4,5.39547]
[1746016755590,3.2078,1783.7,1783.5,1.12107]
[1746016755785,1.12104,1783.6,1783.5,5.39537]
[1746016755984,1.12104,1783.6,1783.5,5.39541]
[1746016755985,8.72458485,1783.6,1783.5,5.39541]
[1746016756187,9.1818746,1783.6,1783.5,5.39541]
[1746016756494,8.0642346,1783.6,1783.3,5.2371]
[1746016756690,1.58178975,1783.6,1783.5,1.12111]
[1746016756892,0.46068975,1783.6,1783.5,1.12111]
[1746016757093,8.0642346,1783.6,1783.5,1.12111]
[1746016757294,8.0608346,1783.6,1783.5,1.12111]
[1746016757590,3.2078,1784.1,1783.5,5.0]
[1746016757796,3.2078,1784.3,1783.8,2.80223]
[1746016757998,5.35657298,1784.4,1784.3,1.1206]
[1746016758290,12.96011783,1784.4,1784.3,1.1206]
[1746016758494,5.35657298,1784.4,1784.3,1.1206]
[1746016758895,5.35657298,1784.4,1784.3,5.0681]
[1746016759095,5.35657298,1784.4,1784.3,9.8251]
[1746016760498,12.96011783,1784.4,1784.1,0.0034]
[1746016760693,11.93201485,1784.2,1784.1,0.0034]
[1746016761596,16.93201485,1784.2,1784.1,0.0034]
[1746016761787,24.76551485,1784.2,1784.1,0.0034]
[1746016762492,1.12104,1783.7,1783.5,1.12109]
[1746016762687,1.12104,1783.6,1783.5,1.12109]
[1746016762892,1.12104,1783.6,1783.4,16.16691335]
[1746016762893,1.12111,1783.5,1783.4,12.53105335]
[1746016763099,7.60354485,1783.5,1783.4,12.53105335]
[1746016763299,8.72465485,1783.5,1783.4,7.37581335]
[1746016763701,11.93245485,1783.5,1783.4,7.37581335]
[1746016764092,1.12117,1783.4,1783.3,0.4801]
[1746016764300,8.72471485,1783.4,1783.3,0.4801]
[1746016764500,1.12139,1783.1,1783.0,1.12141]
[1746016764702,3.2078,1783.5,1783.2,1.12125]
[1746016765006,8.72483485,1783.2,1783.1,1.12131]
[1746016765398,7.60354485,1783.3,1783.0,4.0341]
[1746016765701,7.60354485,1783.3,1783.2,1.12129]
[1746016766504,7.60354485,1783.3,1783.1,1.4013]
[1746016766505,4.2253,1783.4,1783.3,1.12123]
[1746016766801,4.2253,1783.4,1783.2,4.2009]
[1746016766802,12.94661485,1783.4,1783.2,4.2009]
[1746016767002,12.94661485,1783.4,1783.3,1.12123]
[1746016767192,4.2219,1783.4,1783.2,4.2009]
[1746016767394,1.12129,1783.2,1783.1,1.4013]
[1746016767592,8.72483485,1783.2,1783.1,1.4013]
[1746016767803,8.72143485,1783.2,1783.1,2.52266]
[1746016768104,8.72143485,1783.2,1783.1,1.4013]
[1746016768306,7.60354485,1783.1,1783.0,0.1181]
[1746016768494,1.12167,1782.6,1782.5,4.758]
[1746016768700,7.60354485,1782.6,1782.5,5.87969]
[1746016769003,8.72521485,1782.6,1782.5,5.87969]
[1746016769198,7.60354485,1782.6,1782.5,5.87969]
[1746016769397,7.60014485,1782.6,1782.5,10.09689]
[1746016769599,7.60014485,1782.6,1782.5,5.33889]
[1746016769996,1.10979578,1782.5,1782.4,1.12176]
[1746016770196,12.93824063,1782.5,1782.4,1.12176]
[1746016770400,11.82844485,1782.5,1782.4,1.12176]
[1746016770702,12.95017485,1782.5,1782.4,1.12176]
[1746016770910,1.12163,1782.7,1782.6,1.12167]
[1746016771205,5.34993,1782.7,1782.6,1.12167]
[1746016771415,12.95007485,1782.7,1782.6,1.14561844]
[1746016771916,2.80436,1782.5,1781.7,26.12138651]
[1746016772117,8.72213485,1782.1,1782.0,19.66581966]
[1746016772311,7.60014485,1782.2,1782.0,18.54376966]
[1746016772510,7.60014485,1782.1,1782.0,23.59711966]
[1746016772712,3.8712,1782.2,1782.1,1.12199]
[1746016772905,3.2078,1782.5,1782.3,1.12185]
[1746016773118,7.58817063,1782.4,1782.3,1.12185]
[1746016773423,8.70974063,1782.8,1782.5,2.80427]
[1746016773715,4.32941,1782.7,1782.6,0.01653424]
[1746016774112,11.91758063,1782.7,1782.6,0.01653424]
[1746016774719,10.79597063,1782.7,1782.6,0.01653424]
[1746016774920,11.91758063,1782.7,1782.6,1.13820424]
[1746016775214,16.91758063,1782.7,1782.6,0.01653424]
[1746016776122,16.91418063,1782.7,1782.6,0.01653424]
[1746016776312,2.80444,1782.5,1781.6,6.01343]
[1746016776506,8.70682063,1782.1,1782.0,1.12198]
[1746016776713,7.58477063,1782.1,1781.9,4.2462]
[1746016776913,4.2,1782.0,1781.9,5.36831]
[1746016777112,7.58477063,1782.1,1782.0,1.12205]
[1746016777319,7.58477063,1782.0,1781.7,4.76]
[1746016777519,1.12211,1781.9,1781.8,5.36835]
[1746016777718,5.32215,1781.9,1781.8,1.12217]
[1746016777914,12.90352063,1781.9,1781.8,1.12217]
[1746016778115,2.80468,1782.3,1781.7,2.80546]
[1746016778414,7.58137063,1781.8,1781.7,5.41094]
[1746016779021,7.58137063,1782.0,1781.9,1.12211]
[1746016779220,7.58137063,1781.9,1781.8,1.12213]
[1746016779415,12.86748063,1781.9,1781.8,1.12213]
[1746016779610,11.74537063,1781.9,1781.8,0.01203526]
[1746016779816,16.07528063,1781.9,1781.8,0.01203526]
[1746016780017,16.07188063,1781.9,1781.8,0.01203526]
[1746016780419,1.09809948,1781.8,1781.7,4.2887]
[1746016780615,1.09809948,1781.8,1781.5,3.2078]
[1746016780616,11.74197063,1781.8,1781.5,3.2078]
[1746016780817,7.57797063,1781.1,1780.4,7.41354328]
[1746016781126,1.12299,1780.5,1780.4,7.41354328]
[1746016781321,8.70096063,1780.5,1780.4,7.41354328]
[1746016781619,1.11102474,1780.4,1780.3,10.95588757]
[1746016781921,3.2078,1780.4,1780.0,18.15558651]
[1746016782112,3.2078,1780.4,1779.9,7.31e-06]
[1746016782113,1.12331,1780.0,1779.9,7.31e-06]
[1746016782311,1.12337,1779.9,1779.8,9.79723273]
[1746016782515,4.33117,1779.9,1779.8,9.79723273]
[1746016782718,3.2078,1780.4,1779.9,1.03286295]
[1746016783025,74.58143795,1781.6,1779.9,1.03286295]
[1746016783026,3.2078,1780.7,1780.2,15.47406295]
[1746016783215,3.2078,1780.9,1780.4,3.2078]
[1746016783413,1.12299,1780.5,1780.4,3.994]
[1746016783629,6.01443,1781.1,1780.4,22.53826409]
[1746016783921,1.1228,1780.8,1780.7,0.01203526]
[1746016784118,3.2044,1781.1,1780.7,0.01203526]
[1746016784317,3.2044,1781.1,1779.4,32.83500982]
[1746016784318,1.12363,1779.5,1779.4,32.83500982]
[1746016784519,4.33143,1779.5,1779.4,32.83500982]
[1746016784826,9.32803,1779.5,1779.4,27.12850982]
[1746016785029,1.12369,1779.4,1779.3,34.10034462]
[1746016785222,1.12369,1779.4,1779.3,31.14463524]
[1746016785527,6.12369,1779.4,1779.3,19.90493524]
[1746016785826,12.1018,1779.5,1779.0,0.28100938]
[1746016786022,3.2044,1779.1,1779.0,0.28100938]
[1746016786221,3.2044,1779.1,1779.0,1.40494938]
[1746016786421,3.2044,1779.1,1778.8,9.0392]
[1746016786422,1.12394,1779.0,1778.9,0.28100938]
[1746016786617,4.33171,1779.1,1778.9,4.25420938]
[1746016786923,3.2078,1779.1,1779.0,46.35654938]
[1746016787228,3.2078,1780.0,1779.0,28.77761938]
[1746016787418,3.2078,1780.0,1779.7,22.75350938]
[1746016787616,4.33111,1780.0,1779.9,0.28100938]
[1746016787822,1.12344,1779.8,1779.7,0.28100938]
[1746016788018,1.12344,1779.8,1779.7,22.4725]
[1746016788217,4.32784,1779.8,1779.7,0.28100938]
[1746016788633,3.2078,1779.8,1779.7,0.28100938]
[1746016788926,3.2078,1779.8,1779.7,22.75350938]
[1746016789223,3.58201467,1780.3,1779.8,0.28100938]
[1746016789425,6.78981467,1780.3,1780.1,22.4725]
[1746016789623,3.58201467,1780.3,1780.2,45.23260938]
[1746016790016,3.58201467,1780.3,1780.2,0.28100938]
[1746016790220,3.58201467,1780.3,1780.2,22.76010938]
[1746016790420,3.58201467,1780.3,1780.2,46.35578938]
[1746016790823,5.35657298,1780.5,1780.4,1.40406938]
[1746016791029,0.71898765,1780.5,1780.4,51.66566938]
[1746016791226,7.11151984,1780.8,1780.7,1.40387938]
[1746016791426,7.11151984,1780.8,1780.7,49.56327938]
[1746016791630,4.33027,1781.4,1781.0,1.40368938]
[1746016791928,8.87508214,1781.1,1781.0,46.35528938]
[1746016792123,8.87508214,1781.1,1781.0,51.35528938]
[1746016792328,8.87508214,1781.1,1781.0,50.23260938]
[1746016792522,3.2078,1781.4,1781.0,38.07252504]
[1746016792523,4.33026,1781.4,1781.0,38.07252504]
[1746016792723,3.2078,1781.4,1781.3,39.19501504]
[1746016793128,3.2078,1781.4,1781.3,22.4791]
[1746016793320,8.2078,1781.4,1780.8,3.2078]
[1746016793623,1.2547,1781.8,1781.1,0.0034]
[1746016793624,4.33035,1781.2,1781.1,0.0034]
[1746016793828,3.2078,1781.2,1781.1,0.0034]
[1746016794030,3.2078,1781.4,1781.3,1.12249]
[1746016794422,3.2078,1781.8,1781.3,33.35924997]
[1746016794632,3.2078,1781.8,1781.7,28.05024997]
[1746016794822,1.12227,1781.7,1781.6,12.45682493]
[1746016795023,4.33,1781.8,1781.7,12.45682493]
[1746016795318,3.2078,1781.8,1781.7,32.17334997]
[1746016795518,3.2078,1781.8,1781.7,4.1231]
[1746016795519,9.32997,1781.8,1781.7,4.1231]
[1746016795730,1.12239,1781.5,1781.2,4.2875]
[1746016795930,4.33014,1781.6,1781.4,18.82089052]
[1746016796231,3.2078,1781.6,1781.5,20.70458504]
[1746016796425,3.2078,1781.6,1781.5,21.68727052]
[1746016796628,3.2078,1781.6,1781.5,22.80963052]
[1746016796925,3.2078,1781.8,1781.6,1.12226]
[1746016797131,4.32997,1781.8,1781.4,3.2078]
[1746016797325,4.4625,1782.0,1781.7,4.51196358]
[1746016797630,1.12215,1781.9,1781.8,4.51196358]
[1746016798017,1.12215,1781.9,1781.8,2.4069181]
[1746016798224,1.1222,1781.8,1781.6,1.12225]
[1746016798425,4.4625,1782.0,1781.8,4.51196358]
[1746016798726,1.12211,1781.9,1781.8,4.51196358]
[1746016798919,1.12215,1781.9,1781.7,1.12224]
[1746016799130,3.2078,1782.1,1781.8,4.51196358]
[1746016799428,3.2078,1782.3,1782.2,4.51196358]
[1746016799627,1.12201,1782.1,1781.9,1.12206]
[1746016799832,1.12205,1782.0,1781.9,4.51196358]
[1746016800028,4.32979,1782.1,1782.0,4.51196358]
[1746016800221,1.12205,1782.0,1781.9,2.4069181]
[1746016800428,1.12211,1781.9,1781.8,3.9394]
[1746016800724,1.12249,1781.3,1781.2,4.2875]
[1746016800926,1.12249,1781.3,1781.2,3.9394]
[1746016801331,3.2078,1781.4,1781.1,0.0034]
[1746016801332,1.12255,1781.2,1781.1,0.0034]
[1746016801526,1.12255,1781.2,1781.1,2.4103181]
[1746016801728,4.33035,1781.2,1781.1,0.0034]
[1746016801927,4.77549357,1781.2,1781.1,0.0034]
[1746016802529,8.65294357,1781.2,1780.6,5.308]
[1746016802728,1.12287,1780.7,1780.6,4.51196358]
[1746016802939,4.32362,1781.1,1781.0,4.51196358]
[1746016803145,1.12274,1780.9,1780.8,4.51196358]
[1746016803439,0.44514357,1781.1,1781.0,5.63464358]
[1746016803623,4.77556357,1781.1,1781.0,2.4069181]
[1746016803829,1.12278,1780.9,1780.6,5.308]
[1746016804035,1.11938,1780.9,1780.8,4.51196358]
[1746016804238,1.1228,1780.8,1780.7,4.0859]
[1746016804425,2.80707,1780.8,1780.4,1.12301]
[1746016804631,3.2078,1780.7,1780.6,2.4069181]
[1746016804833,4.33067,1780.7,1780.6,6.4928181]
[1746016805234,4.33067,1780.7,1779.7,2.80871]
[1746016805235,8.2078,1780.7,1779.7,2.80871]
[1746016805444,1.12306,1780.4,1780.3,1.1927681]
[1746016805630,1.11758798,1780.4,1780.3,5.2126681]
[1746016805831,4.77153829,1780.4,1780.3,5.2126681]
[1746016806039,0.44615031,1780.4,1780.3,6.3357881]
[1746016806337,0.44615031,1780.4,1780.3,8.44083358]
[1746016806338,1.12306,1780.4,1780.3,8.44083358]
[1746016806533,1.11966,1780.4,1780.3,5.2126681]
[1746016806733,2.80786,1780.3,1779.7,7.4643]
[1746016806934,1.12337,1779.9,1779.8,1.1927681]
[1746016807241,1.12355,1779.7,1779.5,5.55219]
[1746016807538,2.80856,1779.9,1779.5,5.55219]
[1746016807539,5.48948,1779.8,1779.7,1.1927681]
[1746016807739,5.48608,1779.8,1779.7,1.1927681]
[1746016807932,8.01686556,1779.8,1779.2,3.2078]
[1746016808128,1.56993556,1779.8,1779.7,3.29781358]
[1746016808334,0.44646556,1779.8,1779.7,4.42131358]
[1746016808533,4.33109,1780.1,1779.7,8.29781358]
[1746016808836,3.2044,1780.1,1780.0,4.42112358]
[1746016809243,3.2044,1780.1,1780.0,3.29781358]
[1746016809437,3.65053465,1780.1,1780.0,4.42112358]
[1746016809942,3.2078,1780.5,1780.1,1.12325]
[1746016810134,3.2078,1780.7,1780.6,4.42074358]
[1746016810435,4.77746019,1780.7,1780.6,1.1927681]
[1746016810642,1.12299,1780.5,1780.4,0.0034]
[1746016811142,4.77758019,1780.5,1780.4,0.0034]
[1746016812337,10.22016734,1780.5,1780.4,0.0034]
[1746016812537,5.22016734,1780.5,1780.4,0.0034]
[1746016812738,4.77758019,1780.5,1780.4,0.0034]
[1746016813050,2.80781,1780.3,1779.6,6.01664]
[1746016813236,3.2078,1780.1,1779.9,1.1927681]
[1746016813429,4.0133,1780.0,1779.8,5.4300681]
[1746016813641,5.13661,1780.0,1779.9,4.2373]
[1746016813839,4.3311,1780.1,1779.9,8.65844358]
[1746016814036,4.3311,1780.1,1780.0,1.1927681]
[1746016814236,4.3311,1780.1,1779.5,44.9166]
[1746016814237,1.12347,1779.8,1779.5,44.9166]
[1746016814442,1.12369,1779.4,1779.3,4.2606]
[1746016814643,1.12394,1779.0,1778.9,4.4379]
[1746016814945,1.12411,1778.8,1778.6,10.67787]
[1746016815147,3.65443305,1779.0,1778.9,1.1927681]
[1746016815148,4.77837305,1779.0,1778.9,1.1927681]
[1746016815743,3.65443305,1779.0,1778.9,4.42181358]
[1746016815941,3.65103305,1779.0,1778.9,4.42181358]
[1746016816242,3.2078,1779.5,1779.0,2.80981]
[1746016816441,4.3312,1779.9,1779.7,1.12347]
[1746016816646,4.33119,1779.9,1779.8,3.29781358]
[1746016817037,4.32779,1779.9,1779.8,1.1927681]
[1746016817232,3.2044,1779.9,1779.5,7.2122]
[1746016817437,5.55937,1779.8,1779.5,6.10944548]
[1746016817739,1.1235,1779.7,1779.6,1.1927681]
[1746016818038,5.556,1779.7,1779.6,1.1927681]
[1746016818238,3.2078,1779.8,1779.6,3.29781358]
[1746016818440,3.2078,1779.8,1779.7,4.89582268]
[1746016818639,3.2078,1779.8,1779.7,1.1927681]
[1746016818842,3.2078,1779.8,1779.3,4.2427]
[1746016818843,1.12357,1779.6,1779.4,1.12364]
[1746016819042,1.12363,1779.5,1779.4,1.1927681]
[1746016819345,8.76393,1779.5,1779.4,1.1927681]
[1746016819548,15.44941,1779.5,1778.9,40.8]
[1746016819742,1.12381,1779.2,1779.1,1.1927681]
[1746016820139,1.12394,1779.0,1778.9,4.394]
[1746016820354,4.33174,1779.0,1778.9,4.394]
[1746016820547,4.32834,1779.0,1778.9,5.5867681]
[1746016820844,1.12411,1778.8,1778.7,1.12413]
[1746016821035,1.124,1778.9,1778.8,2.10504548]
[1746016821237,1.12413,1778.7,1778.6,4.2161]
[1746016821447,2.81033,1778.7,1778.1,4.0742]
[1746016821647,4.32866,1778.5,1778.4,1.1927681]
[1746016821838,4.32866,1778.5,1778.3,1.12434]
[1746016821839,1.12432,1778.4,1778.3,1.12434]
[1746016822146,3.2078,1778.8,1778.4,4.42211358]
[1746016822351,4.33193,1778.7,1778.6,1.1927681]
[1746016822549,8.45173,1778.7,1778.6,1.1927681]
[1746016822741,1.12426,1778.5,1778.3,1.12435]
[1746016823043,3.2078,1778.5,1777.6,3.2078]
[1746016823249,4.33237,1778.0,1777.9,1.1927681]
[1746016823544,3.2078,1778.0,1776.6,3.2078]
[1746016823748,3.2078,1777.5,1777.0,1.1927681]
[1746016823935,1.12529,1776.9,1776.6,3.2078]
[1746016824140,3.2078,1777.3,1777.2,1.1927681]
[1746016824340,5.55612,1777.3,1777.1,1.1927681]
[1746016824552,1.12508,1777.2,1776.8,4.33308]
[1746016824848,3.2078,1777.5,1777.2,3.29781358]
[1746016825050,4.4311,1777.5,1777.1,1.1927681]
[1746016825243,3.2078,1777.3,1776.3,7.6451]
[1746016825438,2.81239,1777.4,1776.3,7.6451]
[1746016825439,4.4311,1777.2,1776.9,1.1927681]
[1746016825745,3.2078,1777.4,1777.0,3.23022548]
[1746016825947,3.2078,1777.8,1777.5,3.29781358]
[1746016826247,2.81126,1778.2,1777.8,1.1247]
[1746016826248,4.33227,1778.2,1777.8,1.1247]
[1746016826448,3.2078,1778.2,1778.1,1.1927681]
[1746016826650,1.12426,1778.5,1778.1,3.29781358]
[1746016826848,3.2078,1778.7,1778.4,3.29781358]
[1746016827052,5.13291,1778.8,1778.6,3.29781358]
[1746016827349,3.2078,1779.1,1778.7,1.1927681]
[1746016827540,3.2078,1779.4,1779.0,3.29781358]
[1746016827743,3.2078,1779.6,1779.3,4.42152358]
[1746016827946,3.2078,1779.6,1779.5,2.10504548]
[1746016828150,3.2078,1779.6,1779.5,3.29781358]
[1746016828348,5.13227,1779.8,1779.5,3.29781358]
[1746016828543,3.2078,1780.0,1779.8,1.12342]
[1746016828740,4.33114,1780.0,1779.8,3.29781358]
[1746016829042,3.2078,1780.0,1779.8,3.29781358]
[1746016829241,3.2078,1780.0,1779.3,3.2078]
[1746016829242,1.12331,1780.0,1779.9,3.29781358]
[1746016829441,1.12331,1780.0,1779.9,1.1927681]
[1746016829442,3.2078,1780.0,1779.9,1.1927681]
[1746016829654,3.2078,1780.0,1779.6,1.12356]
[1746016829950,3.2078,1780.0,1779.7,3.29781358]